[Event "Kragero Resort International 2022"]
[Site "Kragero"]
[Date "2022.02.26"]
[Round "8.21"]
[White "Ptacnikova, Lenka"]
[Black "Mikalsen, Erlend"]
[Result "1/2-1/2"]
[ECO "A07"]
[WhiteElo "2173"]
[BlackElo "2368"]
[Annotator "NA"]
[PlyCount "110"]
[EventDate "2022.02.23"]
[EventType "swiss"]
[EventCountry "NOR"]
[SourceTitle "playchess.com"]
[Source "ChessBase"]
[SourceQuality "1"]
[TimeControl "5400+30"]

1. Nf3 {[%emt 0:00:09]} d5 {[%emt 0:01:02]} 2. g3 {[%emt 0:00:37]} g6 {[%emt 0:00:05]} 3. Bg2 {[%emt 0:00:09]} Bg7 {[%emt 0:00:05]} 4. O-O {[%emt 0:00:18]} e5 {[%emt 0:00:03]} 5. d3 {[%emt 0:00:19]} Ne7 {[%emt 0:00:04]} 6. e4 {[%emt 0:00:19]} O-O {[%emt 0:00:12]} 7. exd5 {[%emt 0:00:52]} Nxd5 {[%emt 0:00:07]} 8. Nc3 {[%emt 0:01:28]} Nc6 {[%emt 0:02:37]} 9. Bg5 {[%emt 0:08:18]} f6 {[%emt 0:02:35]} 10. Bd2 {[%emt 0:00:39]} Be6 {[%emt 0:00:14]} 11. Re1 {[%emt 0:03:58]} Qd7 {[%emt 0:00:21]} 12. Ne4 {[%emt 0:10:51]} b6 {[%emt 0:01:36]} 13. a3 {[%emt 0:04:58]} a5 {[%emt 0:02:13]} 14. Nc3 {[%emt 0:07:06]} Rae8 {[%emt 0:00:26]} 15. Qc1 {[%emt 0:02:27]} g5 {[%emt 0:01:20]} 16. h4 {[%emt 0:01:22]} h6 {[%emt 0:00:58]} 17. hxg5 {[%emt 0:01:02]} hxg5 {[%emt 0:00:04]} 18. Nxd5 {[%emt 0:02:47]} Bxd5 {[%emt 0:00:05]} 19. Be3 {[%emt 0:06:38]} Ne7 {[%emt 0:02:13]} 20. Nh2 {[%emt 0:05:59]} Bxg2 {[%emt 0:02:25]} 21. Kxg2 {[%emt 0:00:04]} Kf7 {[%emt 0:00:09]} 22. Qd1 {[%emt 0:00:56]} Rh8 {[%emt 0:00:27]} 23. Rh1 {[%emt 0:02:48]} Qh3+ {[%emt 0:05:47]} 24. Kg1 {[%emt 0:02:32]} Rh7 {[%emt 0:01:30]} 25. Qf3 {[%emt 0:01:10]} Reh8 {[%emt 0:00:07]} 26. Bxg5 {[%emt 0:04:12]} Rh5 {[%emt 0:04:43]} 27. Bh4 {[%emt 0:03:31]} Qe6 {[%emt 0:01:32]} 28. Qg4 {[%emt 0:06:50]} Qxg4 {[%emt 0:09:45]} 29. Nxg4 {[%emt 0:00:05]} f5 {[%emt 0:02:41]} 30. Ne3 {[%emt 0:01:16]} f4 {[%emt 0:00:49]} 31. Nc4 {[%emt 0:01:33]} Bf6 {[%emt 0:02:44]} 32. Re1 {[%emt 0:03:30]} Ng6 {[%emt 0:01:31]} 33. Kf1 {[%emt 0:01:01]} Bxh4 {[%emt 0:04:52]} 34. gxh4 {[%emt 0:01:44]} Kf6 {[%emt 0:00:04]} 35. Ke2 {[%emt 0:02:47]} Rxh4 {[%emt 0:00:10]} 36. Rxh4 {[%emt 0:00:18]} Rxh4 {[%emt 0:00:03]} 37. Nd2 {[%emt 0:00:24]} Rh2 {[%emt 0:02:37]} 38. Nf3 {[%emt 0:00:23]} Rh5 {[%emt 0:00:05]} 39. Rg1 {[%emt 0:00:26]} Ne7 {[%emt 0:00:11]} 40. Kd2 {[%emt 0:01:22]} Nf5 {[%emt 0:02:38]} 41. Rg8 {[%emt 0:01:11]} Nd6 {[%emt 0:00:15]} 42. Ke2 {[%emt 0:03:20]} Rh1 {[%emt 0:00:24]} 43. Rg1 {[%emt 0:02:11]} Rh5 {[%emt 0:00:28]} 44. Nd2 {[%emt 0:00:33]} Rh2 {[%emt 0:00:13]} 45. Ne4+ {[%emt 0:01:02]} Nxe4 {[%emt 0:00:36]} 46. dxe4 {[%emt 0:00:03]} Rh8 {[%emt 0:00:00]} 47. Rd1 {[%emt 0:00:38]} Ke6 {[%emt 0:00:00]} 48. a4 {[%emt 0:00:43]} Rg8 {[%emt 0:01:06]} 49. b3 {[%emt 0:00:38]} Rh8 {[%emt 0:00:11]} 50. Rd3 {[%emt 0:00:54]} Rh1 {[%emt 0:00:09]} 51. Rd8 {[%emt 0:00:35]} Rc1 {[%emt 0:00:14]} 52. Kd2 {[%emt 0:00:12]} Rf1 {[%emt 0:00:04]} 53. Ke2 {[%emt 0:00:06]} Rc1 {[%emt 0:00:03]} 54. Kd2 {[%emt 0:00:05]} Rf1 {[%emt 0:00:03]} 55. Ke2 {[%emt 0:00:04]} Rc1 {[%emt 0:00:03]} 1/2-1/2

[Event "Kragero Resort International 2022"]
[Site "Kragero"]
[Date "2022.02.26"]
[Round "8.22"]
[White "Stanford, Maxim Barth"]
[Black "Lye, Sverre"]
[Result "1-0"]
[ECO "E11"]
[WhiteElo "2339"]
[BlackElo "1917"]
[Annotator "ChessBase"]
[PlyCount "171"]
[EventDate "2022.02.23"]
[EventType "swiss"]
[EventCountry "NOR"]
[SourceTitle "playchess.com"]
[Source "ChessBase"]
[SourceQuality "1"]
[TimeControl "5400+30"]

1. d4 {[%emt 0:04:15]} Nf6 {[%emt 0:00:11]} 2. c4 {[%emt 0:00:28]} e6 {[%emt 0:00:11]} 3. g3 {[%emt 0:00:25]} d5 {[%emt 0:00:15]} 4. Bg2 {[%emt 0:00:22]} Bb4+ {[%emt 0:00:18]} 5. Bd2 {[%emt 0:00:15]} Be7 {[%emt 0:00:15]} 6. Nf3 {[%emt 0:00:21]} O-O {[%emt 0:00:19]} 7. O-O {[%emt 0:00:30]} Nbd7 {[%emt 0:00:42]} 8. Qc2 {[%emt 0:01:02]} Ne4 {[%emt 0:00:18]} 9. Nc3 {[%emt 0:01:46]} Nxd2 {[%emt 0:08:05]} 10. Nxd2 {[%emt 0:00:26]} Nf6 {[%emt 0:01:21]} 11. Rfd1 {[%emt 0:02:20]} c6 {[%emt 0:04:00]} 12. Rac1 {[%emt 0:01:35]} b6 {[%emt 0:04:55]} 13. e4 {[%emt 0:02:26]} dxe4 {[%emt 0:05:03]} 14. Ndxe4 {[%emt 0:00:28]} Bb7 {[%emt 0:00:55]} 15. Qa4 {[%emt 0:06:35]} Qb8 {[%emt 0:08:50]} 16. Nxf6+ {[%emt 0:04:22]} Bxf6 {[%emt 0:00:07]} 17. Bxc6 {[%emt 0:00:57]} Rd8 {[%emt 0:06:45]} 18. d5 {[%emt 0:04:15]} Bxc6 {[%emt 0:01:46]} 19. Qxc6 {[%emt 0:00:55]} Rd6 {[%emt 0:07:38]} 20. Qa4 {[%emt 0:01:14]} Bxc3 {[%emt 0:01:23]} 21. Rxc3 {[%emt 0:00:30]} Qd8 {[%emt 0:00:31]} 22. Rcd3 {[%emt 0:02:59]} Qe7 {[%emt 0:12:06]} 23. Qa3 {[%emt 0:03:40]} exd5 {[%emt 0:01:01]} 24. cxd5 {[%emt 0:01:09]} h6 {[%emt 0:02:27]} 25. Rd4 {[%emt 0:03:33]} Rad8 {[%emt 0:00:39]} 26. Qd3 {[%emt 0:00:56]} Qb7 {[%emt 0:01:44]} 27. a3 {[%emt 0:02:15]} Qa8 {[%emt 0:02:17]} 28. h4 {[%emt 0:01:37]} Qb7 {[%emt 0:01:49]} 29. Re1 {[%emt 0:01:45]} Qa8 {[%emt 0:02:16]} 30. Re5 {[%emt 0:00:25]} Qc8 {[%emt 0:00:36]} 31. Kg2 {[%emt 0:03:41]} Qa8 {[%emt 0:01:37]} 32. Kh2 {[%emt 0:00:43]} Qb7 {[%emt 0:01:44]} 33. Qe4 {[%emt 0:04:46]} Qc8 {[%emt 0:02:39]} 34. Rd2 {[%emt 0:10:12]} Qb7 {[%emt 0:02:42]} 35. Re8+ {[%emt 0:02:09]} Rxe8 {[%emt 0:00:02]} 36. Qxe8+ {[%emt 0:00:07]} Kh7 {[%emt 0:00:04]} 37. a4 {[%emt 0:03:22]} Qc7 {[%emt 0:02:12]} 38. b3 {[%emt 0:05:22]} h5 {[%emt 0:03:36]} 39. Rd4 {[%emt 0:11:21]} Rf6 {[%emt 0:01:34]} 40. Qe2 {[%emt 0:02:35]} g6 {[%emt 0:01:04]} 41. Kg1 {[%emt 0:07:04]} Qd7 {[%emt 0:00:58]} 42. Rd2 {[%emt 0:00:55]} Rd6 {[%emt 0:01:11]} 43. Qe5 {[%emt 0:00:25]} Qd8 {[%emt 0:01:19]} 44. Rd4 {[%emt 0:00:37]} Qd7 {[%emt 0:00:34]} 45. Kh2 {[%emt 0:00:27]} Kg8 {[%emt 0:00:55]} 46. Qe4 {[%emt 0:01:13]} Qd8 {[%emt 0:01:22]} 47. Qe5 {[%emt 0:00:27]} Qd7 {[%emt 0:00:12]} 48. f3 {[%emt 0:00:18]} Qd8 {[%emt 0:00:56]} 49. Kh3 {[%emt 0:00:22]} Qc8+ {[%emt 0:02:48]} 50. g4 {[%emt 0:00:35]} Qc1 {[%emt 0:01:41]} 51. Kg2 {[%emt 0:04:38]} Qb2+ {[%emt 0:01:42]} 52. Kg3 {[%emt 0:00:07]} hxg4 {[%emt 0:00:10]} 53. h5 {[%emt 0:00:57]} Qc1 {[%emt 0:02:37]} 54. Qe8+ {[%emt 0:00:37]} Kg7 {[%emt 0:00:02]} 55. Qe5+ {[%emt 0:00:10]} Kg8 {[%emt 0:00:18]} 56. Qe8+ {[%emt 0:00:40]} Kg7 {[%emt 0:00:05]} 57. h6+ {[%emt 0:00:20]} Qxh6 {[%emt 0:00:08]} 58. Qe5+ {[%emt 0:00:04]} Rf6 {[%emt 0:00:56]} 59. Rxg4 {[%emt 0:00:22]} Qh1 {[%emt 0:00:14]} 60. Qe3 {[%emt 0:00:26]} Qd1 {[%emt 0:00:24]} 61. Rh4 {[%emt 0:00:24]} g5 {[%emt 0:00:37]} 62. Rg4 {[%emt 0:01:01]} Qxd5 {[%emt 0:00:27]} 63. Rxg5+ {[%emt 0:00:21]} Qxg5+ {[%emt 0:01:16]} 64. Qxg5+ {[%emt 0:00:04]} Rg6 {[%emt 0:00:05]} 65. Kf4 {[%emt 0:00:02]} Rxg5 {[%emt 0:00:06]} 66. Kxg5 {[%emt 0:00:03]} f6+ {[%emt 0:00:35]} 67. Kf5 {[%emt 0:00:27]} Kf7 {[%emt 0:00:11]} 68. b4 {[%emt 0:01:10]} a6 {[%emt 0:00:04]} 69. b5 {[%emt 0:01:08]} a5 {[%emt 0:00:16]} 70. f4 {[%emt 0:00:29]} Ke7 {[%emt 0:00:42]} 71. Kg6 {[%emt 0:00:03]} Ke6 {[%emt 0:00:16]} 72. Kg7 {[%emt 0:00:10]} Kf5 {[%emt 0:01:14]} 73. Kf7 {[%emt 0:00:04]} Kxf4 {[%emt 0:00:31]} 74. Kxf6 {[%emt 0:00:03]} Ke4 {[%emt 0:00:08]} 75. Ke6 {[%emt 0:00:04]} Kd4 {[%emt 0:00:05]} 76. Kd6 {[%emt 0:00:03]} Kc4 {[%emt 0:00:10]} 77. Kc6 {[%emt 0:00:04]} Kb4 {[%emt 0:00:02]} 78. Kxb6 {[%emt 0:00:04]} Kxa4 {[%emt 0:00:05]} 79. Kc5 {[%emt 0:00:11]} Kb3 {[%emt 0:00:27]} 80. b6 {[%emt 0:00:04]} a4 {[%emt 0:00:03]} 81. b7 {[%emt 0:00:03]} a3 {[%emt 0:00:03]} 82. b8=Q+ {[%emt 0:00:05]} Kc2 {[%emt 0:00:05]} 83. Kc4 {[%emt 0:00:34]} a2 {[%emt 0:00:24]} 84. Qh2+ {[%emt 0:00:41]} Kb1 {[%emt 0:00:18]} 85. Kb3 {[%emt 0:00:07]} a1=Q {[%emt 0:00:07]} 86. Qc2# {[%emt 0:00:04]} 1-0

[Event "Kragero Resort International 2022"]
[Site "Kragero"]
[Date "2022.02.26"]
[Round "8.23"]
[White "Verbin, Valentina"]
[Black "Sjoberg, Isak"]
[Result "0-1"]
[ECO "C84"]
[WhiteElo "2046"]
[BlackElo "2322"]
[Annotator "ChessBase"]
[PlyCount "140"]
[EventDate "2022.02.23"]
[EventType "swiss"]
[EventCountry "NOR"]
[SourceTitle "playchess.com"]
[Source "ChessBase"]
[SourceQuality "1"]
[TimeControl "5400+30"]

1. e4 {[%emt 0:03:17]} e5 {[%emt 0:00:06]} 2. Nf3 {[%emt 0:00:16]} Nc6 {[%emt 0:00:09]} 3. Bb5 {[%emt 0:00:20]} a6 {[%emt 0:00:08]} 4. Ba4 {[%emt 0:00:16]} Nf6 {[%emt 0:00:13]} 5. d3 {[%emt 0:00:17]} b5 {[%emt 0:03:37]} 6. Bb3 {[%emt 0:00:06]} Be7 {[%emt 0:00:03]} 7. a4 {[%emt 0:01:06]} b4 {[%emt 0:03:43]} 8. a5 {[%emt 0:00:23]} O-O {[%emt 0:01:59]} 9. O-O {[%emt 0:00:49]} d6 {[%emt 0:00:03]} 10. Nbd2 {[%emt 0:01:11]} h6 {[%emt 0:01:05]} 11. h3 {[%emt 0:01:49]} Be6 {[%emt 0:00:20]} 12. Nc4 {[%emt 0:04:26]} Qc8 {[%emt 0:07:30]} 13. Ba4 {[%emt 0:05:28]} Qb7 {[%emt 0:03:03]} 14. Bb3 {[%emt 0:02:06]} Rad8 {[%emt 0:03:37]} 15. Qe2 {[%emt 0:07:36]} Rfe8 {[%emt 0:06:46]} 16. Be3 {[%emt 0:03:01]} Bf8 {[%emt 0:04:06]} 17. c3 {[%emt 0:13:09]} bxc3 {[%emt 0:05:01]} 18. bxc3 {[%emt 0:00:45]} Nxe4 {[%emt 0:01:12]} 19. Qc2 {[%emt 0:00:03]} Nf6 {[%emt 0:01:45]} 20. Rfb1 {[%emt 0:03:27]} Qa8 {[%emt 0:00:20]} 21. Rb2 {[%emt 0:03:09]} g6 {[%emt 0:05:03]} 22. d4 {[%emt 0:09:20]} exd4 {[%emt 0:03:11]} 23. cxd4 {[%emt 0:00:37]} Bg7 {[%emt 0:02:08]} 24. Ba4 {[%emt 0:01:06]} Bd5 {[%emt 0:02:34]} 25. Rc1 {[%emt 0:02:55]} Be4 {[%emt 0:06:47]} 26. Qd1 {[%emt 0:07:31]} Re7 {[%emt 0:02:21]} 27. Ncd2 {[%emt 0:00:51]} Bd5 {[%emt 0:06:17]} 28. Qc2 {[%emt 0:02:35]} Nb8 {[%emt 0:08:53]} 29. Qd3 {[%emt 0:01:42]} Ne4 {[%emt 0:01:19]} 30. Ne1 {[%emt 0:00:27]} Nd7 {[%emt 0:02:55]} 31. Nxe4 {[%emt 0:02:26]} Bxe4 {[%emt 0:00:04]} 32. Qd2 {[%emt 0:00:18]} c5 {[%emt 0:01:10]} 33. dxc5 {[%emt 0:02:26]} Nxc5 {[%emt 0:01:07]} 34. Rb4 {[%emt 0:01:59]} Nxa4 {[%emt 0:01:23]} 35. Rxa4 {[%emt 0:00:03]} Bc6 {[%emt 0:03:03]} 36. Rac4 {[%emt 0:02:23]} Bb5 {[%emt 0:00:24]} 37. Rc7 {[%emt 0:01:04]} Rxc7 {[%emt 0:00:16]} 38. Rxc7 {[%emt 0:00:03]} Qe4 {[%emt 0:00:22]} 39. Nf3 {[%emt 0:02:14]} g5 {[%emt 0:03:16]} 40. Nd4 {[%emt 0:02:00]} d5 {[%emt 0:00:59]} 41. Nxb5 {[%emt 0:06:58]} Qb1+ {[%emt 0:01:50]} 42. Rc1 {[%emt 0:01:47]} Qxb5 {[%emt 0:00:04]} 43. Bb6 {[%emt 0:00:03]} Re8 {[%emt 0:01:16]} 44. Rc5 {[%emt 0:00:05]} Qb1+ {[%emt 0:01:38]} 45. Kh2 {[%emt 0:01:19]} d4 {[%emt 0:01:15]} 46. Rd5 {[%emt 0:01:52]} Qe4 {[%emt 0:00:48]} 47. Rd7 {[%emt 0:01:08]} Qc6 {[%emt 0:01:08]} 48. Ra7 {[%emt 0:00:47]} Be5+ {[%emt 0:00:56]} 49. g3 {[%emt 0:00:13]} Qf3 {[%emt 0:01:01]} 50. Bxd4 {[%emt 0:04:24]} Bxg3+ {[%emt 0:00:37]} 51. Kg1 {[%emt 0:00:11]} Bf4 {[%emt 0:00:33]} 52. Qc3 {[%emt 0:00:59]} Qd1+ {[%emt 0:02:19]} 53. Kg2 {[%emt 0:00:04]} Qe2 {[%emt 0:00:32]} 54. Bh8 {[%emt 0:01:11]} Qe4+ {[%emt 0:00:41]} 55. Kg1 {[%emt 0:00:26]} Qh7 {[%emt 0:00:34]} 56. Bd4 {[%emt 0:01:25]} Qb1+ {[%emt 0:00:54]} 57. Kg2 {[%emt 0:00:04]} Qe4+ {[%emt 0:00:23]} 58. Kg1 {[%emt 0:00:06]} Bb8 {[%emt 0:00:58]} 59. Rxa6 {[%emt 0:01:20]} Qf4 {[%emt 0:00:40]} 60. Be3 {[%emt 0:00:28]} Qh2+ {[%emt 0:00:20]} 61. Kf1 {[%emt 0:00:02]} Qxh3+ {[%emt 0:00:19]} 62. Ke1 {[%emt 0:00:30]} Qh1+ {[%emt 0:01:03]} 63. Ke2 {[%emt 0:00:05]} Rd8 {[%emt 0:00:30]} 64. Qc2 {[%emt 0:00:34]} Be5 {[%emt 0:01:02]} 65. Rc6 {[%emt 0:00:57]} Qh5+ {[%emt 0:00:33]} 66. Ke1 {[%emt 0:00:09]} Bd6 {[%emt 0:00:49]} 67. Rc4 {[%emt 0:01:09]} g4 {[%emt 0:00:34]} 68. Qc3 {[%emt 0:00:42]} Bb4 {[%emt 0:00:42]} 69. Rxb4 {[%emt 0:00:29]} Qh1+ {[%emt 0:00:09]} 70. Ke2 {[%emt 0:00:05]} Qd1# {[%emt 0:00:07]} 0-1

[Event "Kragero Resort International 2022"]
[Site "Kragero"]
[Date "2022.02.26"]
[Round "8.24"]
[White "Blokhin, Sofia"]
[Black "Zadruzny, Nicolaj"]
[Result "0-1"]
[ECO "B48"]
[WhiteElo "2059"]
[BlackElo "2280"]
[Annotator "NA"]
[PlyCount "60"]
[EventDate "2022.02.23"]
[EventType "swiss"]
[EventCountry "NOR"]
[SourceTitle "playchess.com"]
[Source "ChessBase"]
[SourceQuality "1"]
[TimeControl "5400+30"]

1. e4 {[%emt 0:00:02]} c5 {[%emt 0:00:05]} 2. Nf3 {[%emt 0:00:05]} e6 {[%emt 0:00:05]} 3. d4 {[%emt 0:00:05]} cxd4 {[%emt 0:00:04]} 4. Nxd4 {[%emt 0:00:07]} Nc6 {[%emt 0:00:03]} 5. Nc3 {[%emt 0:00:18]} Qc7 {[%emt 0:00:58]} 6. a3 {[%emt 0:00:40]} a6 {[%emt 0:00:34]} 7. Be3 {[%emt 0:00:33]} b5 {[%emt 0:01:04]} 8. f3 {[%emt 0:00:53]} Nf6 {[%emt 0:01:58]} 9. Qd2 {[%emt 0:05:40]} Be7 {[%emt 0:01:07]} 10. g4 {[%emt 0:01:40]} Bb7 {[%emt 0:05:12]} 11. Be2 {[%emt 0:11:16]} Nxd4 {[%emt 0:14:56]} 12. Bxd4 {[%emt 0:02:38]} Bd6 {[%emt 0:10:26]} 13. Qg5 {[%emt 0:04:11]} e5 {[%emt 0:12:50]} 14. Bf2 {[%emt 0:04:23]} O-O {[%emt 0:03:13]} 15. h4 {[%emt 0:06:56]} b4 {[%emt 0:05:23]} 16. axb4 {[%emt 0:02:33]} Bxb4 {[%emt 0:00:07]} 17. O-O {[%emt 0:02:52]} Bxc3 {[%emt 0:04:24]} 18. bxc3 {[%emt 0:00:07]} d5 {[%emt 0:00:42]} 19. Bg3 {[%emt 0:14:58]} Rfe8 {[%emt 0:00:46]} 20. exd5 {[%emt 0:06:40]} Nxd5 {[%emt 0:01:14]} 21. h5 {[%emt 0:01:40]} h6 {[%emt 0:04:43]} 22. Qc1 {[%emt 0:02:27]} Nxc3 {[%emt 0:02:44]} 23. Bd3 {[%emt 0:00:38]} Qc5+ {[%emt 0:01:20]} 24. Bf2 {[%emt 0:00:47]} Qc6 {[%emt 0:00:24]} 25. Bg3 {[%emt 0:06:45]} e4 {[%emt 0:01:19]} 26. fxe4 {[%emt 0:00:13]} Rxe4 {[%emt 0:03:20]} 27. Bxe4 {[%emt 0:03:09]} Qxe4 {[%emt 0:00:10]} 28. Qd2 {[%emt 0:00:11]} Qh1+ {[%emt 0:00:29]} 29. Kf2 {[%emt 0:00:06]} Qf3+ {[%emt 0:01:38]} 30. Ke1 {[%emt 0:00:20]} Re8+ {[%emt 0:00:09]} 0-1

[Event "Kragero Resort International 2022"]
[Site "Kragero"]
[Date "2022.02.26"]
[Round "8.25"]
[White "Mierins, Emils Janis"]
[Black "Unneland, Mathias"]
[Result "0-1"]
[ECO "B53"]
[WhiteElo "2025"]
[BlackElo "2262"]
[Annotator "NA"]
[PlyCount "86"]
[EventDate "2022.02.23"]
[EventType "swiss"]
[EventCountry "NOR"]
[SourceTitle "playchess.com"]
[Source "ChessBase"]
[SourceQuality "1"]
[TimeControl "5400+30"]

1. e4 {[%emt 0:00:09]} c5 {[%emt 0:00:23]} 2. Nf3 {[%emt 0:00:07]} d6 {[%emt 0:00:12]} 3. d4 {[%emt 0:00:04]} cxd4 {[%emt 0:00:09]} 4. Qxd4 {[%emt 0:00:07]} Nf6 {[%emt 0:00:48]} 5. Bg5 {[%emt 0:00:08]} Nc6 {[%emt 0:06:31]} 6. Bb5 {[%emt 0:00:08]} Bd7 {[%emt 0:06:32]} 7. Bxc6 {[%emt 0:01:38]} Bxc6 {[%emt 0:00:23]} 8. Nc3 {[%emt 0:00:07]} e6 {[%emt 0:01:14]} 9. O-O-O {[%emt 0:12:38]} Be7 {[%emt 0:01:06]} 10. e5 {[%emt 0:02:35]} dxe5 {[%emt 0:00:54]} 11. Qxe5 {[%emt 0:00:13]} Qb8 {[%emt 0:03:32]} 12. Qd4 {[%emt 0:02:57]} O-O {[%emt 0:35:15]} 13. Ne5 {[%emt 0:07:55]} Qc7 {[%emt 0:02:20]} 14. f4 {[%emt 0:04:29]} Bxg2 {[%emt 0:03:57]} 15. Rhg1 {[%emt 0:10:08]} Rfd8 {[%emt 0:01:42]} 16. Qf2 {[%emt 0:01:09]} Rxd1+ {[%emt 0:00:35]} 17. Kxd1 {[%emt 0:00:44]} Bh3 {[%emt 0:06:16]} 18. Qh4 {[%emt 0:01:22]} Bf5 {[%emt 0:00:49]} 19. Kc1 {[%emt 0:01:21]} Bg6 {[%emt 0:03:32]} 20. Ng4 {[%emt 0:04:30]} Nd5 {[%emt 0:03:05]} 21. Bxe7 {[%emt 0:00:24]} Qxe7 {[%emt 0:01:15]} 22. Qxe7 {[%emt 0:00:18]} Nxe7 {[%emt 0:00:03]} 23. Rd1 {[%emt 0:00:12]} Bh5 {[%emt 0:06:00]} 24. Rd7 {[%emt 0:01:42]} Bxg4 {[%emt 0:00:07]} 25. Rxe7 {[%emt 0:00:05]} Bf3 {[%emt 0:00:07]} 26. Kd2 {[%emt 0:01:13]} Bc6 {[%emt 0:01:00]} 27. Rc7 {[%emt 0:00:22]} h6 {[%emt 0:02:28]} 28. b4 {[%emt 0:00:31]} g5 {[%emt 0:00:41]} 29. b5 {[%emt 0:00:56]} Bh1 {[%emt 0:00:33]} 30. Ke3 {[%emt 0:00:14]} a6 {[%emt 0:02:19]} 31. b6 {[%emt 0:01:15]} gxf4+ {[%emt 0:06:18]} 32. Kxf4 {[%emt 0:00:16]} Rd8 {[%emt 0:00:26]} 33. Ke3 {[%emt 0:08:14]} Rd6 {[%emt 0:01:06]} 34. Na4 {[%emt 0:00:31]} e5 {[%emt 0:01:32]} 35. c4 {[%emt 0:01:05]} f5 {[%emt 0:00:53]} 36. c5 {[%emt 0:00:51]} f4+ {[%emt 0:00:17]} 37. Ke2 {[%emt 0:00:41]} Rd4 {[%emt 0:00:19]} 38. Nc3 {[%emt 0:02:28]} Bc6 {[%emt 0:00:36]} 39. a3 {[%emt 0:02:00]} Kf8 {[%emt 0:01:48]} 40. Rh7 {[%emt 0:01:40]} e4 {[%emt 0:01:20]} 41. Rxh6 {[%emt 0:01:28]} f3+ {[%emt 0:00:44]} 42. Kf2 {[%emt 0:02:49]} Rd2+ {[%emt 0:00:06]} 43. Kg3 {[%emt 0:00:54]} Rg2+ {[%emt 0:00:47]} 0-1

[Event "Kragero Resort International 2022"]
[Site "Kragero"]
[Date "2022.02.26"]
[Round "8.26"]
[White "Gjestemoen-VonHirsch, Andre"]
[Black "Stangl, Anita"]
[Result "1-0"]
[ECO "C06"]
[WhiteElo "2243"]
[BlackElo "1991"]
[Annotator "NA"]
[PlyCount "67"]
[EventDate "2022.02.23"]
[EventType "swiss"]
[EventCountry "NOR"]
[SourceTitle "playchess.com"]
[Source "ChessBase"]
[SourceQuality "1"]
[TimeControl "5400+30"]

1. e4 {[%emt 0:01:15]} e6 {[%emt 0:00:07]} 2. d4 {[%emt 0:00:09]} d5 {[%emt 0:00:06]} 3. Nd2 {[%emt 0:00:05]} Nf6 {[%emt 0:00:17]} 4. e5 {[%emt 0:00:04]} Nfd7 {[%emt 0:00:05]} 5. Bd3 {[%emt 0:00:06]} c5 {[%emt 0:00:11]} 6. c3 {[%emt 0:00:04]} Nc6 {[%emt 0:00:25]} 7. Ngf3 {[%emt 0:00:11]} Qb6 {[%emt 0:00:49]} 8. O-O {[%emt 0:00:04]} cxd4 {[%emt 0:00:32]} 9. cxd4 {[%emt 0:00:05]} Nxd4 {[%emt 0:00:40]} 10. Nxd4 {[%emt 0:00:06]} Qxd4 {[%emt 0:00:04]} 11. Nf3 {[%emt 0:00:04]} Qb6 {[%emt 0:00:35]} 12. Qa4 {[%emt 0:00:04]} Be7 {[%emt 0:02:23]} 13. Qg4 {[%emt 0:00:06]} g6 {[%emt 0:01:01]} 14. Bh6 {[%emt 0:00:31]} Qxb2 {[%emt 0:02:57]} 15. Rab1 {[%emt 0:03:47]} Qa3 {[%emt 0:24:07]} 16. Bb5 {[%emt 0:10:53]} Qa5 {[%emt 0:13:28]} 17. Qf4 {[%emt 0:20:43]} a6 {[%emt 0:12:32]} 18. Ng5 {[%emt 0:14:11]} Bxg5 {[%emt 0:05:30]} 19. Bxd7+ {[%emt 0:02:32]} Bxd7 {[%emt 0:18:02]} 20. Bxg5 {[%emt 0:00:13]} f5 {[%emt 0:01:57]} 21. exf6 {[%emt 0:00:27]} Rf8 {[%emt 0:00:54]} 22. Qd6 {[%emt 0:06:39]} Rf7 {[%emt 0:00:23]} 23. Rxb7 {[%emt 0:04:25]} Rd8 {[%emt 0:01:04]} 24. Rfb1 {[%emt 0:07:18]} h6 {[%emt 0:07:56]} 25. Rxd7 {[%emt 0:08:03]} Rdxd7 {[%emt 0:00:55]} 26. Qxe6+ {[%emt 0:00:32]} Kf8 {[%emt 0:00:26]} 27. Rb8+ {[%emt 0:00:09]} Rd8 {[%emt 0:00:37]} 28. Bxh6+ {[%emt 0:00:06]} Kg8 {[%emt 0:00:14]} 29. Rb7 {[%emt 0:00:15]} Kh7 {[%emt 0:01:14]} 30. Rxf7+ {[%emt 0:00:23]} Kxh6 {[%emt 0:00:15]} 31. Qe3+ {[%emt 0:00:20]} Kh5 {[%emt 0:01:18]} 32. Rh7+ {[%emt 0:00:06]} Kg4 {[%emt 0:00:03]} 33. Qf3+ {[%emt 0:00:05]} Kg5 {[%emt 0:00:20]} 34. h4# {[%emt 0:00:04]} 1-0

[Event "Kragero Resort International 2022"]
[Site "Kragero"]
[Date "2022.02.26"]
[Round "8.27"]
[White "Aulin-Jansson, Joran"]
[Black "Manukyan, Hayk T."]
[Result "1-0"]
[ECO "A00"]
[WhiteElo "2214"]
[BlackElo "1905"]
[Annotator "NA"]
[PlyCount "103"]
[EventDate "2022.02.23"]
[EventType "swiss"]
[EventCountry "NOR"]
[SourceTitle "playchess.com"]
[Source "ChessBase"]
[SourceQuality "1"]
[TimeControl "5400+30"]

1. e4 {[%emt 0:00:06]} d5 {[%emt 0:01:20]} 2. Nc3 {[%emt 0:00:34]} dxe4 {[%emt 0:00:08]} 3. d3 {[%emt 0:00:24]} exd3 {[%emt 0:00:08]} 4. Bxd3 {[%emt 0:00:06]} Nc6 {[%emt 0:00:02]} 5. Nf3 {[%emt 0:01:10]} Nb4 {[%emt 0:00:45]} 6. Bb5+ {[%emt 0:00:32]} c6 {[%emt 0:00:05]} 7. Qxd8+ {[%emt 0:00:34]} Kxd8 {[%emt 0:00:01]} 8. Ba4 {[%emt 0:00:11]} f6 {[%emt 0:01:09]} 9. Be3 {[%emt 0:00:55]} e5 {[%emt 0:00:51]} 10. O-O-O+ {[%emt 0:04:02]} Kc7 {[%emt 0:00:26]} 11. Nd2 {[%emt 0:06:30]} Ne7 {[%emt 0:04:36]} 12. Nde4 {[%emt 0:00:48]} Ned5 {[%emt 0:14:01]} 13. Bd2 {[%emt 0:00:09]} Bf5 {[%emt 0:03:48]} 14. Bb3 {[%emt 0:01:25]} Nxc3 {[%emt 0:02:19]} 15. Nxc3 {[%emt 0:00:08]} Bd6 {[%emt 0:00:46]} 16. f3 {[%emt 0:00:30]} Na6 {[%emt 0:04:37]} 17. g4 {[%emt 0:03:03]} Bg6 {[%emt 0:00:38]} 18. h4 {[%emt 0:00:11]} h6 {[%emt 0:02:11]} 19. h5 {[%emt 0:04:52]} Bh7 {[%emt 0:01:06]} 20. Be6 {[%emt 0:00:18]} Rhe8 {[%emt 0:04:02]} 21. Bf5 {[%emt 0:00:09]} Bg8 {[%emt 0:00:03]} 22. Ne4 {[%emt 0:00:51]} Bb4 {[%emt 0:00:32]} 23. Bxb4 {[%emt 0:00:39]} Nxb4 {[%emt 0:00:08]} 24. Rd7+ {[%emt 0:00:07]} Kb6 {[%emt 0:00:53]} 25. Rxg7 {[%emt 0:03:39]} Nxa2+ {[%emt 0:49:53]} 26. Kb1 {[%emt 0:00:28]} Nb4 {[%emt 0:00:05]} 27. Nxf6 {[%emt 0:00:14]} Ba2+ {[%emt 0:00:06]} 28. Kc1 {[%emt 0:00:35]} Red8 {[%emt 0:00:35]} 29. Nd7+ {[%emt 0:00:56]} Kb5 {[%emt 0:04:53]} 30. b3 {[%emt 0:00:51]} a5 {[%emt 0:02:12]} 31. Nxe5 {[%emt 0:00:21]} b6 {[%emt 0:01:58]} 32. Be6 {[%emt 0:06:39]} a4 {[%emt 0:00:53]} 33. Bc4+ {[%emt 0:05:51]} Kc5 {[%emt 0:00:52]} 34. Nd7+ {[%emt 0:00:51]} Kd4 {[%emt 0:00:40]} 35. Nxb6 {[%emt 0:02:25]} Kc3 {[%emt 0:00:04]} 36. Nxa8 {[%emt 0:00:35]} Rd2 {[%emt 0:00:54]} 37. Re7 {[%emt 0:06:25]} Rxc2+ {[%emt 0:00:47]} 38. Kd1 {[%emt 0:01:15]} Rd2+ {[%emt 0:00:25]} 39. Ke1 {[%emt 0:00:38]} Nc2+ {[%emt 0:00:28]} 40. Kf1 {[%emt 0:00:09]} Bxb3 {[%emt 0:00:34]} 41. Bxb3 {[%emt 0:00:25]} axb3 {[%emt 0:00:02]} 42. Nb6 {[%emt 0:00:10]} Nd4 {[%emt 0:01:03]} 43. f4 {[%emt 0:00:45]} Kc2 {[%emt 0:00:29]} 44. Na4 {[%emt 0:00:17]} c5 {[%emt 0:00:31]} 45. Rh3 {[%emt 0:00:27]} b2 {[%emt 0:00:29]} 46. Rc3+ {[%emt 0:01:01]} Kb1 {[%emt 0:00:29]} 47. Re1+ {[%emt 0:00:12]} Ka2 {[%emt 0:00:03]} 48. Rxc5 {[%emt 0:00:08]} Nf3 {[%emt 0:00:19]} 49. Nc3+ {[%emt 0:00:39]} Kb3 {[%emt 0:00:03]} 50. Re3 {[%emt 0:00:25]} Kb4 {[%emt 0:01:30]} 51. Rb5+ {[%emt 0:00:39]} Kc4 {[%emt 0:00:09]} 52. Rxf3 {[%emt 0:00:07]} 1-0